{"text_format":"3","workbook":"xlsx","n_sheets":2,"sheets":["BAŞLANGIÇ","YILLIK ZAMAN ÇİZELGESİ"],"not_rendered":{"defined_names":2},"read":"whole","date_system":"1900"}

{"sheet":"BAŞLANGIÇ","index":0,"n_rows":8,"n_cols":2,"rows_kept":8}
[null,"BU ŞABLON HAKKINDA"]
[null,"Bu çalişan zaman karti günlük, haftalık, aylık ve yıllık olarak izleyin."]
[null,"Çalışan Adı, Yönetici Adı, E-posta adresi ve Telefon numarası gibi temel bilgileri doldurun. "]
[null,"Her ay tablosuna saatlerinizi ekleyin. Normal mesai saatlerini ve fazla mesai saatlerini her haftanın her iş günü için ayrı sütunlarda günlüğe kaydedin. "]
[null,"Toplam Çalışma, Normal ve Fazla Mesai saatleri otomatik olarak hesaplanır. "]
[null,"Notlar:"]
[null,"YILLIK ZAMAN ÇİZELGESİ çalışma sayfasının A sütununda Ek Yönergeler sağlanmıştır. Bu metin özellikle gizlendi. Metni kaldırmak için A sütununu ve ardından SİL seçeneğini belirleyin. Metni göstermek için A sütununu seçin ve yazı tipi rengini değiştirin. "]
[null,"Tablolar hakkında daha fazla bilgi edinmek için bir tabloda SHIFT ve F10 tuşlarına basın, TABLO seçeneğini ve ardından ALTERNATİF METİN seçeneğini belirleyin."]

{"sheet":"YILLIK ZAMAN ÇİZELGESİ","index":1,"n_rows":132,"n_cols":15,"rows_kept":132,"merged":[[0,1,0,2],[0,4,0,14],[10,6,10,7],[21,6,21,7],[32,6,32,7],[33,4,33,14],[43,6,43,7],[54,6,54,7],[65,6,65,7],[66,4,66,14],[76,6,76,7],[87,6,87,7],[98,6,98,7],[99,4,99,14],[109,6,109,7],[120,6,120,7],[131,6,131,7]]}
["Bu çalışma sayfasında günlük, haftalık, aylık veya yıllık Çalışan zaman çizelgesi oluşturun. \nBu çalışma kitabının nasıl kullanılacağına yönelik yardımcı yönergeler bu sütundaki hücrelerdedir. Başlamak için aşağı oka basın.\nBu çalışma sayfasının başlığı sağdaki hücrede ve Ocak, Şubat, Mart ilk çeyrek başlığı E1 hücresindedir.","ÇALIŞAN \nZAMAN KARTI",null,null,"Ocak, Şubat, Mart      Çalışan Zaman Kartı: Günlük, Haftalık, Aylık, Yıllık"]
["Çalışan Adını C2 hücresine ve normal ve fazla mesai saatlerini Ocak tablosunda E2 hücresinden başlayarak girin.","Çalışan Adı:",null,null,"Ocak","Hafta 1","Fazla Mesai","Hafta 2","Fazla Mesai  ","Hafta 3","Fazla Mesai   ","Hafta 4","Fazla Mesai    ","Hafta 5","Fazla Mesai     "]
["C3 hücresine Yönetici adını girin.","Yönetici:",null,null,"Pazartesi",{"v":8,"d":"8.0"}]
["C4 hücresine E-posta adresini girin.","E-posta:",null,null,"Salı",{"v":8,"d":"8.0"},{"v":2,"d":"2.0"}]
["C5 hücresine Telefon numarasını girin. Sonraki yönerge A9 hücresindedir.","Telefon:",null,null,"Çarşamba"]
[{"$nulls":4},"Perşembe"]
[{"$nulls":4},"Cuma"]
[{"$nulls":4},"Cumartesi"]
["Yıllık toplam normal mesai saatleri C9 hücresinde otomatik olarak hesaplanır.","Normal mesai sa.:",{"$f":"NormalmesaiSa","v":31},null,"Pazar"]
["Yıllık toplam fazla mesai saatleri C10 hücresinde otomatik olarak hesaplanır.","Fazla mesai sa.:",{"$f":"Fazlamesai_sa","v":4},null,"Toplam haftalık saat",{"$f":"SUM(F3:F9)","v":{"v":16,"d":"16.0"}},{"v":2,"d":"2.0"},{"v":0,"d":"0.0"},{"v":0,"d":"0.0"},{"v":0,"d":"0.0"},{"v":0,"d":"0.0"},{"v":0,"d":"0.0"},{"v":0,"d":"0.0"},{"v":0,"d":"0.0"},{"v":0,"d":"0.0"}]
["Yıllık genel toplam saatler C11 hücresinde otomatik olarak hesaplanır. F11 hücresindeki Ocak ayı toplam normal mesai saatleri ve I11 hücresindeki Ocak ayı toplam fazla mesai saatleri otomatik olarak hesaplanır. Sonraki yönerge A13 hücresindedir.","Toplam",{"$f":"NormalmesaiSa+Fazlamesai_sa","v":35},null,{"$f":"TEXT(DATEVALUE(Ocak[[#Headers],[Ocak]]&\"  \"&YEAR(TODAY())),\"aaa.\")&\" toplam: Normal çalışma saatleri\"","v":"Oca. toplam: Normal çalışma saatleri"},{"$f":"SUM(Ocak[Hafta 1],Ocak[Hafta 2],Ocak[Hafta 3],Ocak[Hafta 4],Ocak[Hafta 5])","v":{"v":16,"d":"16.0"}},{"$f":"TEXT(DATEVALUE(Ocak[[#Headers],[Ocak]]&\"  \"&YEAR(TODAY())),\"aaa.\")&\" toplam: Fazla Mesai\"","v":"Oca. toplam: Fazla Mesai"},null,{"$f":"SUM(Ocak[Fazla Mesai],Ocak[[Fazla Mesai  ]],Ocak[[Fazla Mesai   ]],Ocak[[Fazla Mesai    ]],Ocak[[Fazla Mesai     ]])","v":{"v":2,"d":"2.0"}}]
[]
["Normal ve fazla mesai saatlerini Şubat tablosunda E13 hücresinden başlayarak girin. Sonraki yönerge A22 hücresindedir.",{"$nulls":3},"Şubat","Hafta 1","Fazla Mesai","Hafta 2","Fazla Mesai  ","Hafta 3","Fazla Mesai   ","Hafta 4","Fazla Mesai    ","Hafta 5","Fazla Mesai     "]
[{"$nulls":4},"Pazartesi",{"v":8,"d":"8.0"}]
[{"$nulls":4},"Salı",{"v":7,"d":"7.0"},{"v":2,"d":"2.0"}]
[{"$nulls":4},"Çarşamba"]
[{"$nulls":4},"Perşembe"]
[{"$nulls":4},"Cuma"]
[{"$nulls":4},"Cumartesi"]
[{"$nulls":4},"Pazar"]
[{"$nulls":4},"Toplam haftalık saat",{"$f":"SUM(F14:F20)","v":{"v":15,"d":"15.0"}},{"v":2,"d":"2.0"},{"v":0,"d":"0.0"},{"v":0,"d":"0.0"},{"v":0,"d":"0.0"},{"v":0,"d":"0.0"},{"v":0,"d":"0.0"},{"v":0,"d":"0.0"},{"v":0,"d":"0.0"},{"v":0,"d":"0.0"}]
["F22 hücresindeki Şubat ayı toplam normal mesai saatleri ve I22 hücresindeki Şubat ayı toplam fazla mesai saatleri otomatik olarak hesaplanır. Sonraki yönerge A24 hücresindedir.",{"$nulls":3},{"$f":"TEXT(DATEVALUE(Şubat[[#Headers],[Şubat]]&\"  \"&YEAR(TODAY())),\"aaa.\")&\" toplam: Normal çalışma saatleri\"","v":"Şub. toplam: Normal çalışma saatleri"},{"$f":"SUM(Şubat[Hafta 1],Şubat[Hafta 2],Şubat[Hafta 3],Şubat[Hafta 4],Şubat[Hafta 5])","v":{"v":15,"d":"15.0"}},{"$f":"TEXT(DATEVALUE(Şubat[[#Headers],[Şubat]]&\" \"&YEAR(TODAY())),\"aaa.\")&\" toplam: Fazla Mesai\"","v":"Şub. toplam: Fazla Mesai"},null,{"$f":"SUM(Şubat[Fazla Mesai],Şubat[[Fazla Mesai  ]],Şubat[[Fazla Mesai   ]],Şubat[[Fazla Mesai    ]],Şubat[[Fazla Mesai     ]])","v":{"v":2,"d":"2.0"}}]
[]
["Normal ve fazla mesai saatlerini Mart tablosunda E24 hücresinden başlayarak girin. Sonraki yönerge A33 hücresindedir.",{"$nulls":3},"Mart","Hafta 1","Fazla Mesai","Hafta 2","Fazla Mesai ","Hafta 3","Fazla Mesai  ","Hafta 4","Fazla Mesai    ","Hafta 5","Fazla Mesai     "]
[{"$nulls":4},"Pazartesi"]
[{"$nulls":4},"Salı"]
[{"$nulls":4},"Çarşamba"]
[{"$nulls":4},"Perşembe"]
[{"$nulls":4},"Cuma"]
[{"$nulls":4},"Cumartesi"]
[{"$nulls":4},"Pazar"]
[{"$nulls":4},"Toplam haftalık saat",{"$f":"SUM(F25:F31)","v":{"v":0,"d":"0.0"}},{"v":0,"d":"0.0"},{"v":0,"d":"0.0"},{"v":0,"d":"0.0"},{"v":0,"d":"0.0"},{"v":0,"d":"0.0"},{"v":0,"d":"0.0"},{"v":0,"d":"0.0"},{"v":0,"d":"0.0"},{"v":0,"d":"0.0"}]
["F33 hücresindeki Mart ayı toplam normal mesai saatleri ve I33 hücresindeki Mart ayı toplam fazla mesai saatleri otomatik olarak hesaplanır.",{"$nulls":3},{"$f":"TEXT(DATEVALUE(Mart[[#Headers],[Mart]]&\" \"&YEAR(TODAY())),\"aaa.\")&\" toplam: Normal çalışma saatleri\"","v":"Mar. toplam: Normal çalışma saatleri"},{"$f":"SUM(Mart[Hafta 1],Mart[Hafta 2],Mart[Hafta 3],Mart[Hafta 4],Mart[Hafta 5])","v":{"v":0,"d":"0.0"}},{"$f":"TEXT(DATEVALUE(Mart[[#Headers],[Mart]]&\" \"&YEAR(TODAY())),\"aaa.\")&\" toplam: Fazla Mesai\"","v":"Mar. toplam: Fazla Mesai"},null,{"$f":"SUM(Mart[Fazla Mesai],Mart[[Fazla Mesai ]],Mart[[Fazla Mesai  ]],Mart[[Fazla Mesai    ]],Mart[[Fazla Mesai     ]])","v":{"v":0,"d":"0.0"}}]
["Nisan, Mayıs, Haziran ikinci çeyreği başlığı E34 hücresindedir. ",{"$nulls":3},"Nisan, Mayıs, Haziran      Çalışan Zaman Kartı: Günlük, Haftalık, Aylık, Yıllık"]
["Nisan ayı normal ve fazla mesai saatlerini tabloda E35 hücresinden başlayarak girin. Sonraki yönerge A44 hücresindedir.",{"$nulls":3},"Nisan","Hafta 1","Fazla Mesai","Hafta 2","Fazla Mesai  ","Hafta 3","Fazla Mesai   ","Hafta 4","Fazla Mesai    ","Hafta 5","Fazla Mesai     "]
[{"$nulls":4},"Pazartesi"]
[{"$nulls":4},"Salı"]
[{"$nulls":4},"Çarşamba"]
[{"$nulls":4},"Perşembe"]
[{"$nulls":4},"Cuma"]
[{"$nulls":4},"Cumartesi"]
[{"$nulls":4},"Pazar"]
[{"$nulls":4},"Toplam haftalık saat",{"$f":"SUM(F36:F42)","v":{"v":0,"d":"0.0"}},{"v":0,"d":"0.0"},{"v":0,"d":"0.0"},{"v":0,"d":"0.0"},{"v":0,"d":"0.0"},{"v":0,"d":"0.0"},{"v":0,"d":"0.0"},{"v":0,"d":"0.0"},{"v":0,"d":"0.0"},{"v":0,"d":"0.0"}]
["F44 hücresindeki Nisan ayı toplam normal mesai saatleri ve I44 hücresindeki Nisan ayı toplam fazla mesai saatleri otomatik olarak hesaplanır. Sonraki yönerge A46 hücresindedir.",{"$nulls":3},{"$f":"TEXT(DATEVALUE(Nisan[[#Headers],[Nisan]]&\" \"&YEAR(TODAY())),\"aaa.\")&\" toplam: Normal çalışma saatleri\"","v":"Nis. toplam: Normal çalışma saatleri"},{"$f":"SUM(Nisan[Hafta 1],Nisan[Hafta 2],Nisan[Hafta 3],Nisan[Hafta 4],Nisan[Hafta 5])","v":{"v":0,"d":"0.0"}},{"$f":"TEXT(DATEVALUE(Nisan[[#Headers],[Nisan]]&\" \"&YEAR(TODAY())),\"aaa.\")&\" toplam: Fazla Mesai\"","v":"Nis. toplam: Fazla Mesai"},null,{"$f":"SUM(Nisan[Fazla Mesai],Nisan[[Fazla Mesai  ]],Nisan[[Fazla Mesai   ]],Nisan[[Fazla Mesai    ]],Nisan[[Fazla Mesai     ]])","v":{"v":0,"d":"0.0"}}]
[]
["May ayı normal ve fazla mesai saatlerini tabloda E46 hücresinden başlayarak girin. Sonraki yönerge A55 hücresindedir.",{"$nulls":3},"May","Hafta 1","Fazla Mesai","Hafta 2","Fazla Mesai  ","Hafta 3","Fazla Mesai   ","Hafta 4","Fazla Mesai    ","Hafta 5","Fazla Mesai     "]
[{"$nulls":4},"Pazartesi"]
[{"$nulls":4},"Salı"]
[{"$nulls":4},"Çarşamba"]
[{"$nulls":4},"Perşembe"]
[{"$nulls":4},"Cuma"]
[{"$nulls":4},"Cumartesi"]
[{"$nulls":4},"Pazar"]
[{"$nulls":4},"Toplam haftalık saat",{"$f":"SUM(F47:F53)","v":{"v":0,"d":"0.0"}},{"v":0,"d":"0.0"},{"v":0,"d":"0.0"},{"v":0,"d":"0.0"},{"v":0,"d":"0.0"},{"v":0,"d":"0.0"},{"v":0,"d":"0.0"},{"v":0,"d":"0.0"},{"v":0,"d":"0.0"},{"v":0,"d":"0.0"}]
["F55 hücresindeki Mayıs ayı toplam normal mesai saatleri ve I55 hücresindeki Mayıs ayı toplam fazla mesai saatleri otomatik olarak hesaplanır. Sonraki yönerge A57 hücresindedir.",{"$nulls":3},{"$f":"TEXT(DATEVALUE(May[[#Headers],[May]]&\" \"&YEAR(TODAY())),\"aaa.\")&\" toplam: Normal çalışma saatleri\"","v":"May. toplam: Normal çalışma saatleri"},{"$f":"SUM(May[Hafta 1],May[Hafta 2],May[Hafta 3],May[Hafta 4],May[Hafta 5])","v":{"v":0,"d":"0.0"}},{"$f":"TEXT(DATEVALUE(May[[#Headers],[May]]&\" \"&YEAR(TODAY())),\"aaa.\")&\" toplam: Fazla Mesai\"","v":"May. toplam: Fazla Mesai"},null,{"$f":"SUM(May[Fazla Mesai],May[[Fazla Mesai  ]],May[[Fazla Mesai   ]],May[[Fazla Mesai    ]],May[[Fazla Mesai     ]])","v":{"v":0,"d":"0.0"}}]
[]
["Haziran ayı normal ve fazla mesai saatlerini tabloda E57 hücresinden başlayarak girin. Sonraki yönerge A66 hücresindedir.",{"$nulls":3},"Haziran","Hafta 1","Fazla Mesai","Hafta 2","Fazla Mesai  ","Hafta 3","Fazla Mesai   ","Hafta 4","Fazla Mesai    ","Hafta 5","Fazla Mesai     "]
[{"$nulls":4},"Pazartesi"]
[{"$nulls":4},"Salı"]
[{"$nulls":4},"Çarşamba"]
[{"$nulls":4},"Perşembe"]
[{"$nulls":4},"Cuma"]
[{"$nulls":4},"Cumartesi"]
[{"$nulls":4},"Pazar"]
[{"$nulls":4},"Toplam haftalık saat",{"$f":"SUM(F58:F64)","v":{"v":0,"d":"0.0"}},{"v":0,"d":"0.0"},{"v":0,"d":"0.0"},{"v":0,"d":"0.0"},{"v":0,"d":"0.0"},{"v":0,"d":"0.0"},{"v":0,"d":"0.0"},{"v":0,"d":"0.0"},{"v":0,"d":"0.0"},{"v":0,"d":"0.0"}]
["F66 hücresindeki Haziran ayı toplam normal mesai saatleri ve I66 hücresindeki Haziran ayı toplam fazla mesai saatleri otomatik olarak hesaplanır.",{"$nulls":3},{"$f":"TEXT(DATEVALUE(Haziran[[#Headers],[Haziran]]&\" \"&YEAR(TODAY())),\"aaa.\")&\" toplam: Normal çalışma saatleri\"","v":"Haz. toplam: Normal çalışma saatleri"},{"$f":"SUM(Haziran[Hafta 1],Haziran[Hafta 2],Haziran[Hafta 3],Haziran[Hafta 4],Haziran[Hafta 5])","v":{"v":0,"d":"0.0"}},{"$f":"TEXT(DATEVALUE(Haziran[[#Headers],[Haziran]]&\" \"&YEAR(TODAY())),\"aaa.\")&\" toplam: Fazla Mesai\"","v":"Haz. toplam: Fazla Mesai"},null,{"$f":"SUM(Haziran[Fazla Mesai],Haziran[[Fazla Mesai  ]],Haziran[[Fazla Mesai   ]],Haziran[[Fazla Mesai    ]],Haziran[[Fazla Mesai     ]])","v":{"v":0,"d":"0.0"}}]
["Temmuz, Ağustos, Eylül üçüncü çeyrek başlığı E67 hücresindedir. ",{"$nulls":3},"Temmuz, Ağustos, Eylül      Çalışan Zaman Kartı: Günlük, Haftalık, Aylık, Yıllık"]
["Temmuz ayı normal ve fazla mesai saatlerini tabloda E68 hücresinden başlayarak girin. Sonraki yönerge A77 hücresindedir.",{"$nulls":3},"Temmuz","Hafta 1","Fazla Mesai","Hafta 2","Fazla Mesai ","Hafta 3","Fazla Mesai  ","Hafta 4","Fazla Mesai   ","Hafta 5","Fazla Mesai     "]
[{"$nulls":4},"Pazartesi"]
[{"$nulls":4},"Salı"]
[{"$nulls":4},"Çarşamba"]
[{"$nulls":4},"Perşembe"]
[{"$nulls":4},"Cuma"]
[{"$nulls":4},"Cumartesi"]
[{"$nulls":4},"Pazar"]
[{"$nulls":4},"Toplam haftalık saat",{"$f":"SUM(F69:F75)","v":{"v":0,"d":"0.0"}},{"v":0,"d":"0.0"},{"v":0,"d":"0.0"},{"v":0,"d":"0.0"},{"v":0,"d":"0.0"},{"v":0,"d":"0.0"},{"v":0,"d":"0.0"},{"v":0,"d":"0.0"},{"v":0,"d":"0.0"},{"v":0,"d":"0.0"}]
["F77 hücresindeki Temmuz ayı toplam normal mesai saatleri ve I77 hücresindeki Temmuz ayı toplam fazla mesai saatleri otomatik olarak hesaplanır. Sonraki yönerge A79 hücresindedir.",{"$nulls":3},{"$f":"TEXT(DATEVALUE(Temmuz[[#Headers],[Temmuz]]&\" \"&YEAR(TODAY())),\"aaa.\")&\" toplam: Normal çalışma saatleri\"","v":"Tem. toplam: Normal çalışma saatleri"},{"$f":"SUM(Temmuz[Hafta 1],Temmuz[Hafta 2],Temmuz[Hafta 3],Temmuz[Hafta 4],Temmuz[Hafta 5])","v":{"v":0,"d":"0.0"}},{"$f":"TEXT(DATEVALUE(Temmuz[[#Headers],[Temmuz]]&\" \"&YEAR(TODAY())),\"aaa.\")&\" toplam: Fazla Mesai\"","v":"Tem. toplam: Fazla Mesai"},null,{"$f":"SUM(Temmuz[Fazla Mesai],Temmuz[[Fazla Mesai ]],Temmuz[[Fazla Mesai  ]],Temmuz[[Fazla Mesai   ]],Temmuz[[Fazla Mesai     ]])","v":{"v":0,"d":"0.0"}}]
[]
["Ağustos ayı normal ve fazla mesai saatlerini tabloda E79 hücresinden başlayarak girin. Sonraki yönerge A88 hücresindedir.",{"$nulls":3},"Ağustos","Hafta 1","Fazla Mesai","Hafta 2","Fazla Mesai ","Hafta 3","Fazla Mesai   ","Hafta 4","Fazla Mesai  ","Hafta 5","Fazla Mesai    "]
[{"$nulls":4},"Pazartesi"]
[{"$nulls":4},"Salı"]
[{"$nulls":4},"Çarşamba"]
[{"$nulls":4},"Perşembe"]
[{"$nulls":4},"Cuma"]
[{"$nulls":4},"Cumartesi"]
[{"$nulls":4},"Pazar"]
[{"$nulls":4},"Toplam haftalık saat",{"$f":"SUBTOTAL(109,Ağustos[Hafta 1])","v":{"v":0,"d":"0.0"}},{"$f":"SUBTOTAL(109,Ağustos[Fazla Mesai])","v":{"v":0,"d":"0.0"}},{"$f":"SUBTOTAL(109,Ağustos[Hafta 2])","v":{"v":0,"d":"0.0"}},{"$f":"SUBTOTAL(109,Ağustos[[Fazla Mesai ]])","v":{"v":0,"d":"0.0"}},{"$f":"SUBTOTAL(109,Ağustos[Hafta 3])","v":{"v":0,"d":"0.0"}},{"$f":"SUBTOTAL(109,Ağustos[[Fazla Mesai   ]])","v":{"v":0,"d":"0.0"}},{"$f":"SUBTOTAL(109,Ağustos[Hafta 4])","v":{"v":0,"d":"0.0"}},{"$f":"SUBTOTAL(109,Ağustos[[Fazla Mesai  ]])","v":{"v":0,"d":"0.0"}},{"$f":"SUBTOTAL(109,Ağustos[Hafta 5])","v":{"v":0,"d":"0.0"}},{"$f":"SUBTOTAL(109,Ağustos[[Fazla Mesai    ]])","v":{"v":0,"d":"0.0"}}]
["F88 hücresindeki Ağustos ayı toplam normal mesai saatleri ve I88 hücresindeki Ağustos ayı toplam fazla mesai saatleri otomatik olarak hesaplanır. Sonraki yönerge A90 hücresindedir.",{"$nulls":3},{"$f":"TEXT(DATEVALUE(Ağustos[[#Headers],[Ağustos]]&\" \"&YEAR(TODAY())),\"aaa.\")&\" toplam: Normal çalışma saatleri\"","v":"Ağu. toplam: Normal çalışma saatleri"},{"$f":"SUM(Ağustos[Hafta 1],Ağustos[Hafta 2],Ağustos[Hafta 3],Ağustos[Hafta 4],Ağustos[Hafta 5])","v":{"v":0,"d":"0.0"}},{"$f":"TEXT(DATEVALUE(Ağustos[[#Headers],[Ağustos]]&\" \"&YEAR(TODAY())),\"aaa.\")&\" toplam: Fazla Mesai\"","v":"Ağu. toplam: Fazla Mesai"},null,{"$f":"SUM(Ağustos[Fazla Mesai],Ağustos[[Fazla Mesai ]],Ağustos[[Fazla Mesai   ]],Ağustos[[Fazla Mesai  ]],Ağustos[[Fazla Mesai    ]])","v":{"v":0,"d":"0.0"}}]
[]
["Eylül ayı normal ve fazla mesai saatlerini tabloda E90 hücresinden başlayarak girin. Sonraki yönerge A99 hücresindedir.",{"$nulls":3},"Eylül","Hafta 1","Fazla Mesai","Hafta 2","Fazla Mesai ","Hafta 3","Fazla Mesai  ","Hafta 4","Fazla Mesai   ","Hafta 5","Fazla Mesai    "]
[{"$nulls":4},"Pazartesi"]
[{"$nulls":4},"Salı"]
[{"$nulls":4},"Çarşamba"]
[{"$nulls":4},"Perşembe"]
[{"$nulls":4},"Cuma"]
[{"$nulls":4},"Cumartesi"]
[{"$nulls":4},"Pazar"]
[{"$nulls":4},"Toplam haftalık saat",{"$f":"SUBTOTAL(109,Eylül[Hafta 1])","v":{"v":0,"d":"0.0"}},{"$f":"SUBTOTAL(109,Eylül[Fazla Mesai])","v":{"v":0,"d":"0.0"}},{"$f":"SUBTOTAL(109,Eylül[Hafta 2])","v":{"v":0,"d":"0.0"}},{"$f":"SUBTOTAL(109,Eylül[[Fazla Mesai ]])","v":{"v":0,"d":"0.0"}},{"$f":"SUBTOTAL(109,Eylül[Hafta 3])","v":{"v":0,"d":"0.0"}},{"$f":"SUBTOTAL(109,Eylül[[Fazla Mesai  ]])","v":{"v":0,"d":"0.0"}},{"$f":"SUBTOTAL(109,Eylül[Hafta 4])","v":{"v":0,"d":"0.0"}},{"$f":"SUBTOTAL(109,Eylül[[Fazla Mesai   ]])","v":{"v":0,"d":"0.0"}},{"$f":"SUBTOTAL(109,Eylül[Hafta 5])","v":{"v":0,"d":"0.0"}},{"$f":"SUBTOTAL(109,Eylül[[Fazla Mesai    ]])","v":{"v":0,"d":"0.0"}}]
["F99 hücresindeki Eylül ayı toplam normal mesai saatleri ve I99 hücresindeki Eylül ayı toplam fazla mesai saatleri otomatik olarak hesaplanır.",{"$nulls":3},{"$f":"TEXT(DATEVALUE(Eylül[[#Headers],[Eylül]]&\" \"&YEAR(TODAY())),\"aaa.\")&\" toplam: Normal çalışma saatleri\"","v":"Eyl. toplam: Normal çalışma saatleri"},{"$f":"SUM(Eylül[Hafta 1],Eylül[Hafta 2],Eylül[Hafta 3],Eylül[Hafta 4],Eylül[Hafta 5])","v":{"v":0,"d":"0.0"}},{"$f":"TEXT(DATEVALUE(Eylül[[#Headers],[Eylül]]&\" \"&YEAR(TODAY())),\"aaa.\")&\" toplam: Fazla Mesai\"","v":"Eyl. toplam: Fazla Mesai"},null,{"$f":"SUM(Eylül[Fazla Mesai],Eylül[[Fazla Mesai ]],Eylül[[Fazla Mesai  ]],Eylül[[Fazla Mesai   ]],Eylül[[Fazla Mesai    ]])","v":{"v":0,"d":"0.0"}}]
["Ekim, Kasım, Aralık dördüncü çeyrek başlığı E100 hücresindedir. ",{"$nulls":3},"Ekim, Kasım, Aralık      Çalışan Zaman Kartı: Günlük, Haftalık, Aylık, Yıllık"]
["Ekim ayı normal ve fazla mesai saatlerini tabloda E101 hücresinden başlayarak girin. Sonraki yönerge A110 hücresindedir.",{"$nulls":3},"Ekim","Hafta 1","Fazla Mesai","Hafta 2","Fazla Mesai ","Hafta 3","Fazla Mesai  ","Hafta 4","Fazla Mesai   ","Hafta 5","Fazla Mesai    "]
[{"$nulls":4},"Pazartesi"]
[{"$nulls":4},"Salı"]
[{"$nulls":4},"Çarşamba"]
[{"$nulls":4},"Perşembe"]
[{"$nulls":4},"Cuma"]
[{"$nulls":4},"Cumartesi"]
[{"$nulls":4},"Pazar"]
[{"$nulls":4},"Toplam haftalık saat",{"$f":"SUBTOTAL(109,Ekim[Hafta 1])","v":{"v":0,"d":"0.0"}},{"$f":"SUBTOTAL(109,Ekim[Fazla Mesai])","v":{"v":0,"d":"0.0"}},{"$f":"SUBTOTAL(109,Ekim[Hafta 2])","v":{"v":0,"d":"0.0"}},{"$f":"SUBTOTAL(109,Ekim[[Fazla Mesai ]])","v":{"v":0,"d":"0.0"}},{"$f":"SUBTOTAL(109,Ekim[Hafta 3])","v":{"v":0,"d":"0.0"}},{"$f":"SUBTOTAL(109,Ekim[[Fazla Mesai  ]])","v":{"v":0,"d":"0.0"}},{"$f":"SUBTOTAL(109,Ekim[Hafta 4])","v":{"v":0,"d":"0.0"}},{"$f":"SUBTOTAL(109,Ekim[[Fazla Mesai   ]])","v":{"v":0,"d":"0.0"}},{"$f":"SUBTOTAL(109,Ekim[Hafta 5])","v":{"v":0,"d":"0.0"}},{"$f":"SUBTOTAL(109,Ekim[[Fazla Mesai    ]])","v":{"v":0,"d":"0.0"}}]
["F110 hücresindeki Ekim ayı toplam normal mesai saatleri ve I110 hücresindeki Ekim ayı toplam fazla mesai saatleri otomatik olarak hesaplanır. Sonraki yönerge A112 hücresindedir.",{"$nulls":3},{"$f":"TEXT(DATEVALUE(Ekim[[#Headers],[Ekim]]&\" \"&YEAR(TODAY())),\"aaa.\")&\" toplam: Normal çalışma saatleri\"","v":"Eki. toplam: Normal çalışma saatleri"},{"$f":"SUM(Ekim[Hafta 1],Ekim[Hafta 2],Ekim[Hafta 3],Ekim[Hafta 4],Ekim[Hafta 5])","v":{"v":0,"d":"0.0"}},{"$f":"TEXT(DATEVALUE(Ekim[[#Headers],[Ekim]]&\" \"&YEAR(TODAY())),\"aaa.\")&\" toplam: Fazla Mesai\"","v":"Eki. toplam: Fazla Mesai"},null,{"$f":"SUM(Ekim[Fazla Mesai],Ekim[[Fazla Mesai ]],Ekim[[Fazla Mesai  ]],Ekim[[Fazla Mesai   ]],Ekim[[Fazla Mesai    ]])","v":{"v":0,"d":"0.0"}}]
[]
["Kasım ayı normal ve fazla mesai saatlerini tabloda E112 hücresinden başlayarak girin. Sonraki yönerge A121 hücresindedir.",{"$nulls":3},"Kasım","Hafta 1","Fazla Mesai","Hafta 2","Fazla Mesai ","Hafta 3","Fazla Mesai  ","Hafta 4","Fazla Mesai    ","Hafta 5","Fazla Mesai     "]
[{"$nulls":4},"Pazartesi"]
[{"$nulls":4},"Salı"]
[{"$nulls":4},"Çarşamba"]
[{"$nulls":4},"Perşembe"]
[{"$nulls":4},"Cuma"]
[{"$nulls":4},"Cumartesi"]
[{"$nulls":4},"Pazar"]
[{"$nulls":4},"Toplam haftalık saat",{"$f":"SUBTOTAL(109,Kasım[Hafta 1])","v":{"v":0,"d":"0.0"}},{"$f":"SUBTOTAL(109,Kasım[Fazla Mesai])","v":{"v":0,"d":"0.0"}},{"$f":"SUBTOTAL(109,Kasım[Hafta 2])","v":{"v":0,"d":"0.0"}},{"$f":"SUBTOTAL(109,Kasım[[Fazla Mesai ]])","v":{"v":0,"d":"0.0"}},{"$f":"SUBTOTAL(109,Kasım[Hafta 3])","v":{"v":0,"d":"0.0"}},{"$f":"SUBTOTAL(109,Kasım[[Fazla Mesai  ]])","v":{"v":0,"d":"0.0"}},{"$f":"SUBTOTAL(109,Kasım[Hafta 4])","v":{"v":0,"d":"0.0"}},{"$f":"SUBTOTAL(109,Kasım[[Fazla Mesai    ]])","v":{"v":0,"d":"0.0"}},{"$f":"SUBTOTAL(109,Kasım[Hafta 5])","v":{"v":0,"d":"0.0"}},{"$f":"SUBTOTAL(109,Kasım[[Fazla Mesai     ]])","v":{"v":0,"d":"0.0"}}]
["F121 hücresindeki Kasım ayı toplam normal mesai saatleri ve I121 hücresindeki Kasım ayı toplam fazla mesai saatleri otomatik olarak hesaplanır. Sonraki yönerge A123 hücresindedir.",{"$nulls":3},{"$f":"TEXT(DATEVALUE(Kasım[[#Headers],[Kasım]]&\" \"&YEAR(TODAY())),\"aaa.\")&\" toplam: Normal çalışma saatleri\"","v":"Kas. toplam: Normal çalışma saatleri"},{"$f":"SUM(Kasım[Hafta 1],Kasım[Hafta 2],Kasım[Hafta 3],Kasım[Hafta 4],Kasım[Hafta 5])","v":{"v":0,"d":"0.0"}},{"$f":"TEXT(DATEVALUE(Kasım[[#Headers],[Kasım]]&\" \"&YEAR(TODAY())),\"aaa.\")&\" toplam: Fazla Mesai\"","v":"Kas. toplam: Fazla Mesai"},null,{"$f":"SUM(Kasım[Fazla Mesai],Kasım[[Fazla Mesai ]],Kasım[[Fazla Mesai  ]],Kasım[[Fazla Mesai    ]],Kasım[[Fazla Mesai     ]])","v":{"v":0,"d":"0.0"}}]
[]
["Aralık ayı normal ve fazla mesai saatlerini tabloda E123 hücresinden başlayarak girin. Sonraki yönerge A132 hücresindedir.",{"$nulls":3},"Aralık","Hafta 1","Fazla Mesai","Hafta 2","Fazla Mesai ","Hafta 3","Fazla Mesai  ","Hafta 4","Fazla Mesai   ","Hafta 5","Fazla Mesai    "]
[{"$nulls":4},"Pazartesi"]
[{"$nulls":4},"Salı"]
[{"$nulls":4},"Çarşamba"]
[{"$nulls":4},"Perşembe"]
[{"$nulls":4},"Cuma"]
[{"$nulls":4},"Cumartesi"]
[{"$nulls":4},"Pazar"]
[{"$nulls":4},"Toplam haftalık saat",{"$f":"SUBTOTAL(109,Aralık[Hafta 1])","v":{"v":0,"d":"0.0"}},{"$f":"SUBTOTAL(109,Aralık[Fazla Mesai])","v":{"v":0,"d":"0.0"}},{"$f":"SUBTOTAL(109,Aralık[Hafta 2])","v":{"v":0,"d":"0.0"}},{"$f":"SUBTOTAL(109,Aralık[[Fazla Mesai ]])","v":{"v":0,"d":"0.0"}},{"$f":"SUBTOTAL(109,Aralık[Hafta 3])","v":{"v":0,"d":"0.0"}},{"$f":"SUBTOTAL(109,Aralık[[Fazla Mesai  ]])","v":{"v":0,"d":"0.0"}},{"$f":"SUBTOTAL(109,Aralık[Hafta 4])","v":{"v":0,"d":"0.0"}},{"$f":"SUBTOTAL(109,Aralık[[Fazla Mesai   ]])","v":{"v":0,"d":"0.0"}},{"$f":"SUBTOTAL(109,Aralık[Hafta 5])","v":{"v":0,"d":"0.0"}},{"$f":"SUBTOTAL(109,Aralık[[Fazla Mesai    ]])","v":{"v":0,"d":"0.0"}}]
["F132 hücresindeki Aralık ayı toplam normal mesai saatleri ve I132 hücresindeki Aralık ayı toplam fazla mesai saatleri otomatik olarak hesaplanır.",{"$nulls":3},{"$f":"TEXT(DATEVALUE(Aralık[[#Headers],[Aralık]]&\" \"&YEAR(TODAY())),\"aaa.\")&\" toplam: Normal çalışma saatleri\"","v":"Ara. toplam: Normal çalışma saatleri"},{"$f":"SUM(Aralık[Hafta 1],Aralık[Hafta 2],Aralık[Hafta 3],Aralık[Hafta 4],Aralık[Hafta 5])","v":{"v":0,"d":"0.0"}},{"$f":"TEXT(DATEVALUE(Aralık[[#Headers],[Aralık]]&\" \"&YEAR(TODAY())),\"aaa.\")&\" toplam: Fazla Mesai\"","v":"Ara. toplam: Fazla Mesai"},null,{"$f":"SUM(G124:G130,I124:I130,K124:K130,M124:M130,O124:O130)","v":{"v":0,"d":"0.0"}}]